fUST/lending_fUST_20250716
["ID","MTS","AMOUNT","RATE_DAILY","PERIOD"]
[372464532,1752654644657,-999.79,0.00020547,2]
[372464534,1752654644667,-460.0,0.00020547,2]
[372464536,1752654644676,-460.0,0.00020547,2]
[372464538,1752654644685,-460.0,0.00020547,2]
[372464540,1752654644695,-460.0,0.00020547,2]
[372464542,1752654644705,-460.0,0.00020547,2]
[372464544,1752654644714,-160.0,0.00020563,2]
[372464546,1752654644723,-230.8109288,0.00020563,2]
[372464548,1752654644732,-160.0,0.00020563,2]
[372464550,1752654644742,-160.0,0.00020563,2]
[372464552,1752654644751,-160.0,0.00020563,2]
[372464554,1752654644760,-215.5496034,0.00020563,2]
[372464556,1752654644769,-160.0,0.00020563,2]
[372464559,1752654644779,-160.0,0.00020563,2]
[372464561,1752654644789,-160.0,0.00020563,2]
[372464563,1752654644799,-520.85416667,0.00020563,2]
[372464566,1752654644808,-160.0,0.00020563,2]
[372464569,1752654644818,-468.75,0.00020563,2]
[372464572,1752654644827,-160.0,0.00020563,2]
[372464575,1752654644836,-12605.49131908,0.00020563,2]
[372464577,1752654644846,-214.40824756,0.00020563,2]
[372464579,1752654644856,-838.99048831,0.00020563,2]
[372464582,1752654644867,-160.0,0.00020563,2]
[372464585,1752654644877,-160.0,0.00020563,2]
[372464588,1752654644886,-6552.40895527,0.00020739,2]
[372464590,1752654644898,-1024.69984856,0.00020816,2]
[372464593,1752654644911,-460.0,0.00020821,2]
[372464596,1752654644920,-176.26,0.00020821,2]
[372464599,1752654644930,-778.57,0.00020821,2]
[372464601,1752654644939,-460.0,0.00020821,2]
[372464604,1752654644949,-581.78,0.00020821,2]
[372464607,1752654644959,-711.91,0.00020821,2]
[372464610,1752654644968,-460.0,0.00020821,2]
[372464613,1752654644978,-462.79,0.00020821,2]
[372464616,1752654644987,-460.0,0.00020821,2]
[372464619,1752654644998,-1837.15,0.00020821,2]
[372464622,1752654645007,-673.27,0.00020821,2]
[372464625,1752654645017,-460.0,0.00020821,2]
[372464628,1752654645027,-1802.7,0.00020821,2]
[372464631,1752654645038,-968.13,0.00020821,2]
[372464634,1752654645049,-663.7,0.00020821,2]
[372464637,1752654645058,-460.0,0.00020821,2]
[372464640,1752654645069,-460.0,0.00020821,2]
[372464643,1752654645079,-460.57,0.00020821,2]
[372464646,1752654645088,-460.0,0.00020821,2]
[372464648,1752654645098,-460.0,0.00020821,2]
[372464652,1752654645109,-999.79,0.00020821,2]
[372464655,1752654645119,-460.0,0.00020821,2]
[372464658,1752654645130,-460.0,0.00020821,2]
[372464661,1752654645139,-460.0,0.00020821,2]
[372464662,1752654645149,-460.0,0.00020821,2]
[372464665,1752654645159,-460.0,0.00020821,2]
[372464667,1752654645169,-420.0,0.00020896,2]
[372464668,1752654645178,-1680.0,0.00020898,2]
[372464670,1752654645188,-151.0,0.000209,3]
[372464672,1752654645197,-249.84316173,0.000209,2]
[372464674,1752654645206,-1115.24679293,0.00020926,2]
[372464676,1752654645216,-160.0,0.00020955,2]
[372464678,1752654645225,-500.0,0.00020973,2]
[372464680,1752654645234,-500.0,0.00020973,2]
[372464682,1752654645243,-501.55765168,0.00020973,2]
[372464684,1752654645253,-501.58314376,0.00020973,2]
[372464686,1752654645262,-501.02878966,0.00020973,2]
[372464688,1752654645271,-471.55242615,0.00020973,2]
[372464690,1752654645281,-10000.0,0.00021,5]
[372464692,1752654645290,-3920.39356113,0.00021,2]
[372464694,1752654645299,-269.95567869,0.00021,2]
[372464696,1752654645309,-169.10995551,0.00021,10]
[372464698,1752654645318,-35000.0,0.00021,2]
[372464700,1752654645328,-184792.66293396,0.00021,3]
[372464702,1752654645338,-780.0,0.00021,2]
[372464704,1752654645347,-12605.49131908,0.00021,3]
[372464707,1752654645357,-643.561,0.00021033,2]
[372464709,1752654645366,-178.3908234,0.00021033,2]
[372464711,1752654645376,-270.96,0.00021095,2]
[372464713,1752654645385,-778.57,0.00021095,2]
[372464715,1752654645395,-460.0,0.00021095,2]
[372464717,1752654645404,-711.91,0.00021095,2]
[372464719,1752654645414,-460.0,0.00021095,2]
[372464721,1752654645423,-462.79,0.00021095,2]
[372464723,1752654645432,-460.0,0.00021095,2]
[372464725,1752654645443,-1837.15,0.00021095,2]
[372464727,1752654645458,-673.27,0.00021095,2]
[372464729,1752654645467,-460.0,0.00021095,2]
[372464731,1752654645477,-1802.7,0.00021095,2]
[372464733,1752654645486,-968.13,0.00021095,2]
[372464735,1752654645497,-663.7,0.00021095,2]
[372464737,1752654645506,-460.0,0.00021095,2]
[372464739,1752654645515,-460.0,0.00021095,2]
[372464741,1752654645526,-460.0,0.00021095,2]
[372464743,1752654645535,-460.0,0.00021095,2]
[372464745,1752654645544,-999.79,0.00021095,2]
[372464747,1752654645554,-460.0,0.00021095,2]
[372464749,1752654645564,-460.0,0.00021095,2]
[372464751,1752654645573,-460.0,0.00021095,2]
[372464752,1752654645582,-460.0,0.00021095,2]
[372464753,1752654645591,-198.04,0.00021095,2]
[372464754,1752654645600,-778.57,0.00021369,2]
[372464755,1752654645610,-460.0,0.00021369,2]
[372464756,1752654645619,-711.91,0.00021369,2]
[372464757,1752654645628,-460.0,0.00021369,2]
[372464758,1752654645637,-462.79,0.00021369,2]
[372464759,1752654645647,-460.0,0.00021369,2]
[372464760,1752654645656,-1837.15,0.00021369,2]
[372464761,1752654645665,-673.27,0.00021369,2]
[372464762,1752654645675,-460.0,0.00021369,2]
[372464764,1752654645684,-1802.7,0.00021369,2]
[372464766,1752654645695,-968.13,0.00021369,2]
[372464768,1752654645704,-663.7,0.00021369,2]
[372464770,1752654645714,-460.0,0.00021369,2]
[372464772,1752654645723,-460.0,0.00021369,2]
[372464774,1752654645733,-460.0,0.00021369,2]
[372464776,1752654645742,-999.79,0.00021369,2]
[372464778,1752654645751,-460.0,0.00021369,2]
[372464780,1752654645761,-460.0,0.00021369,2]
[372464782,1752654645771,-460.0,0.00021369,2]
[372464784,1752654645780,-460.0,0.00021369,2]
[372464786,1752654645790,-151.0,0.000215,4]
[372464788,1752654645799,-260.0,0.00021503,2]
[372464790,1752654645808,-1000.0,0.00021521,2]
[372464792,1752654645817,-941.54,0.000216,2]
[372464794,1752654645827,-778.57,0.00021643,2]
[372464796,1752654645835,-460.0,0.00021643,2]
[372464798,1752654645845,-711.91,0.00021643,2]
[372464800,1752654645854,-460.0,0.00021643,2]
[372464802,1752654645864,-462.79,0.00021643,2]
[372464804,1752654645873,-460.0,0.00021643,2]
[372464806,1752654645883,-1837.15,0.00021643,2]
[372464808,1752654645892,-673.27,0.00021643,2]
[372464810,1752654645902,-460.0,0.00021643,2]
[372464812,1752654645911,-1802.7,0.00021643,2]
[372464814,1752654645920,-968.13,0.00021643,2]
[372464816,1752654645929,-663.7,0.00021643,2]
[372464818,1752654645938,-251.45,0.00021643,2]
[372464820,1752654645947,-460.0,0.00021643,2]
[372464822,1752654645958,-460.0,0.00021643,2]
[372464824,1752654645967,-999.79,0.00021643,2]
[372464826,1752654645978,-460.0,0.00021643,2]
[372464828,1752654645988,-460.0,0.00021643,2]
[372464830,1752654645997,-500.0,0.00021686,2]
[372464832,1752654646007,-1115.24679293,0.00021852,2]
[372464834,1752654646017,-178.52,0.000219,2]
[372464836,1752654646026,-500.0,0.00021917,2]
[372464838,1752654646036,-500.0,0.00021917,2]
[372464840,1752654646045,-500.0,0.00021917,2]
[372464842,1752654646054,-500.0,0.00021917,2]
[372464844,1752654646063,-500.0,0.00021917,2]
[372464846,1752654646072,-500.0,0.00021917,2]
[372464848,1752654646083,-500.0,0.00021917,2]
[372464850,1752654646092,-500.0,0.00021917,2]
[372464852,1752654646101,-500.0,0.00021917,2]
[372464854,1752654646111,-500.0,0.00021917,2]
[372464856,1752654646120,-500.0,0.00021917,2]
[372464858,1752654646130,-778.57,0.00021917,2]
[372464860,1752654646139,-460.0,0.00021917,2]
[372464862,1752654646149,-711.91,0.00021917,2]
[372464864,1752654646159,-460.0,0.00021917,2]
[372464866,1752654646168,-462.79,0.00021917,2]
[372464868,1752654646177,-460.0,0.00021917,2]
[372464870,1752654646187,-1837.15,0.00021917,2]
[372464872,1752654646197,-673.27,0.00021917,2]
[372464874,1752654646206,-460.0,0.00021917,2]
[372464876,1752654646215,-1802.7,0.00021917,2]
[372464878,1752654646225,-968.13,0.00021917,2]
[372464880,1752654646234,-663.7,0.00021917,2]
[372464882,1752654646243,-216.38,0.00021917,2]
[372464884,1752654646253,-460.0,0.00021917,2]
[372464886,1752654646262,-999.79,0.00021917,2]
[372464888,1752654646271,-460.0,0.00021917,2]
[372464890,1752654646280,-460.0,0.00021917,2]
[372464892,1752654646290,-500.0,0.00021925,2]
[372464894,1752654646299,-500.0,0.00021925,2]
[372464896,1752654646308,-500.0,0.00021925,2]
[372464898,1752654646317,-500.0,0.00021925,2]
[372464900,1752654646327,-500.0,0.00021925,2]
[372464902,1752654646336,-500.0,0.00021925,2]
[372464904,1752654646346,-500.0,0.00021925,2]
[372464906,1752654646355,-500.0,0.00021925,2]
[372464908,1752654646365,-500.0,0.00021925,2]
[372464910,1752654646374,-500.0,0.00021925,2]
[372464912,1752654646383,-500.0,0.00021925,2]
[372464914,1752654646393,-500.0,0.00021925,2]
[372464916,1752654646402,-500.0,0.00021925,2]
[372464918,1752654646411,-500.0,0.00021925,2]
[372464920,1752654646420,-500.0,0.00021925,2]
[372464922,1752654646429,-500.0,0.00021925,2]
[372464924,1752654646439,-500.0,0.00021925,2]
[372464926,1752654646450,-207.4,0.00021925,2]
[372464928,1752654646461,-6912.642,0.00021925,2]
[372464929,1752654646470,-25000.0,0.00021925,2]
[372464931,1752654646480,-4386.63149947,0.00021925,2]
[372464934,1752654646490,-153.72017957,0.00021973,2]
[372464935,1752654646500,-300.31602514,0.00021973,2]
[372464937,1752654646509,-500.0,0.00021973,2]
[372464939,1752654646519,-500.0,0.00021973,2]
[372464941,1752654646529,-500.0,0.00021973,2]
[372464943,1752654646538,-500.0,0.00021973,2]
[372464945,1752654646546,-500.0,0.00021973,2]
[372464947,1752654646554,-7168.409754,0.0002198,2]
[372464949,1752654646562,-5000.0,0.00022,19]
[372464951,1752654646571,-151.0,0.00022,10]
[372464953,1752654646581,-13330.02,0.00022,7]
[372464955,1752654646590,-151.0,0.00022,3]
[372464957,1752654646599,-12605.49131908,0.00022,7]
[372464959,1752654646609,-7433.6409149,0.00022035,2]
[372464961,1752654646618,-360.0,0.00022051,2]
[372464963,1752654646627,-1500.0,0.00022068,2]
[372464965,1752654646637,-7708.68562875,0.0002209,2]
[372464967,1752654646646,-7993.90699701,0.00022145,2]
[372464969,1752654646655,-778.57,0.00022191,2]
[372464980,1752654646747,-460.0,0.00022191,2]
[372464982,1752654646757,-711.91,0.00022191,2]
[372464984,1752654646767,-460.0,0.00022191,2]
[372464986,1752654646777,-462.79,0.00022191,2]
[372464988,1752654646786,-460.0,0.00022191,2]
[372464990,1752654646796,-1837.15,0.00022191,2]
[372464992,1752654646806,-673.27,0.00022191,2]
[372464994,1752654646815,-460.0,0.00022191,2]
[372464996,1752654646825,-1802.7,0.00022191,2]
[372464998,1752654646834,-968.13,0.00022191,2]
[372465000,1752654646844,-663.7,0.00022191,2]
[372465002,1752654646854,-460.0,0.00022191,2]
[372465004,1752654646863,-999.79,0.00022191,2]
[372465006,1752654646872,-460.0,0.00022191,2]
[372465008,1752654646881,-460.0,0.00022191,2]
[372465010,1752654646891,-21685.38,0.000222,2]
[372465012,1752654646901,-8289.6815559,0.000222,2]
[372465014,1752654646910,-1651.51543819,0.00022255,2]
[372465016,1752654646922,-151.0,0.000224,5]
[372465018,1752654646931,-778.57,0.00022465,2]
[372465020,1752654646941,-460.0,0.00022465,2]
[372465022,1752654646950,-711.91,0.00022465,2]
[372465024,1752654646959,-460.0,0.00022465,2]
[372465026,1752654646968,-462.79,0.00022465,2]
[372465028,1752654646978,-460.0,0.00022465,2]
[372465030,1752654646987,-1837.15,0.00022465,2]
[372465032,1752654646997,-673.27,0.00022465,2]
[372465034,1752654647006,-206.92,0.00022465,2]
[372465036,1752654647016,-1802.7,0.00022465,2]
[372465039,1752654647025,-968.13,0.00022465,2]
[372465040,1752654647034,-663.7,0.00022465,2]
[372465042,1752654647045,-517.57561506,0.00022465,2]
[372465044,1752654647055,-999.79,0.00022465,2]
[372465046,1752654647066,-460.0,0.00022465,2]
[372465048,1752654647078,-506.59,0.00022465,2]
[372465050,1752654647088,-17007.69522916,0.0002249,7]
[372465052,1752654647098,-1000.0,0.00022521,2]
[372465054,1752654647108,-1000.0,0.00022521,2]
[372465056,1752654647117,-460.0,0.00022599,2]
[372465058,1752654647127,-151.0,0.000226,6]
[372465060,1752654647136,-1003.9999861,0.00022616,2]
[372465062,1752654647146,-151.0,0.000227,5]
[372465064,1752654647155,-778.57,0.00022739,2]
[372465066,1752654647165,-583.82695939,0.00022739,2]
[372465068,1752654647175,-711.91,0.00022739,2]
[372465070,1752654647184,-460.0,0.00022739,2]
[372465072,1752654647194,-462.79,0.00022739,2]
[372465074,1752654647204,-460.0,0.00022739,2]
[372465076,1752654647214,-1837.15,0.00022739,2]
[372465078,1752654647223,-673.27,0.00022739,2]
[372465081,1752654647233,-1802.7,0.00022739,2]
[372465083,1752654647242,-968.13,0.00022739,2]
[372465085,1752654647252,-663.7,0.00022739,2]
[372465087,1752654647261,-999.79,0.00022739,2]
[372465089,1752654647272,-460.0,0.00022739,2]
[372465090,1752654647281,-587.0,0.00022773,2]
[372465092,1752654647290,-480.0,0.00022775,2]
[372465094,1752654647299,-1115.24679293,0.00022777,2]
[372465097,1752654647308,-151.0,0.000229,7]
[372465099,1752654647318,-1963.24868026,0.00023,2]
[372465101,1752654647327,-331.2002356,0.00023,2]
[372465103,1752654647337,-778.57,0.00023013,2]
[372465105,1752654647346,-711.91,0.00023013,2]
[372465107,1752654647355,-460.0,0.00023013,2]
[372465109,1752654647365,-462.79,0.00023013,2]
[372465111,1752654647374,-460.0,0.00023013,2]
[372465113,1752654647382,-1837.15,0.00023013,2]
[372465115,1752654647391,-673.27,0.00023013,2]
[372465116,1752654647401,-1802.7,0.00023013,2]
[372465118,1752654647410,-968.13,0.00023013,2]
[372465120,1752654647419,-663.7,0.00023013,2]
[372465123,1752654647428,-999.79,0.00023013,2]
[372465125,1752654647438,-460.0,0.00023013,2]
[372465126,1752654647450,-3246.52510918,0.00023035,2]
[372465129,1752654647460,-498.34621255,0.00023068,2]
[372465130,1752654647469,-1293.70857859,0.00023068,2]
[372465132,1752654647479,-419.07,0.000231,7]
[372465135,1752654647489,-560.0,0.00023147,2]
[372465137,1752654647499,-151.0,0.000232,6]
[372465139,1752654647508,-778.57,0.00023287,2]
[372465140,1752654647518,-711.91,0.00023287,2]
[372465142,1752654647530,-460.0,0.00023287,2]
[372465145,1752654647540,-462.79,0.00023287,2]
[372465146,1752654647549,-460.0,0.00023287,2]
[372465148,1752654647558,-1837.15,0.00023287,2]
[372465151,1752654647568,-673.27,0.00023287,2]
[372465153,1752654647577,-1802.7,0.00023287,2]
[372465155,1752654647586,-968.13,0.00023287,2]
[372465157,1752654647596,-663.7,0.00023287,2]
[372465159,1752654647605,-999.79,0.00023287,2]
[372465161,1752654647615,-460.0,0.00023287,2]
[372465163,1752654647624,-215.0738,0.00023294,2]
[372465165,1752654647634,-151.0,0.000233,7]
[372465166,1752654647643,-941.54,0.000233,7]
[372465169,1752654647652,-151.0,0.00023347,6]
[372465170,1752654647662,-151.0,0.000234,10]
[372465173,1752654647671,-3246.52510918,0.0002343,2]
[372465175,1752654647680,-1646.54297989,0.00023543,2]
[372465176,1752654647690,-778.57,0.00023561,2]
[372465179,1752654647700,-711.91,0.00023561,2]
[372465180,1752654647709,-460.0,0.00023561,2]
[372465183,1752654647718,-462.79,0.00023561,2]
[372465184,1752654647727,-460.0,0.00023561,2]
[372465187,1752654647736,-1837.15,0.00023561,2]
[372465189,1752654647746,-673.27,0.00023561,2]
[372465191,1752654647755,-1802.7,0.00023561,2]
[372465193,1752654647764,-968.13,0.00023561,2]
[372465195,1752654647774,-663.7,0.00023561,2]
[372465197,1752654647785,-999.79,0.00023561,2]
[372465199,1752654647795,-449.35,0.00023561,2]
[372465200,1752654647804,-160.0,0.00023573,3]
[372465202,1752654647814,-21685.38,0.000236,2]
[372465204,1752654647824,-3246.52510918,0.00023614,2]
[372465206,1752654647833,-151.0,0.00023617,6]
[372465209,1752654647843,-320.0,0.00023695,2]
[372465211,1752654647852,-1115.24679293,0.00023703,2]
[372465213,1752654647862,-151.0,0.000238,5]
[372465214,1752654647871,-151.0,0.000238,8]
[372465216,1752654647880,-151.0,0.000238,8]
[372465218,1752654647891,-778.57,0.00023835,2]
[372465220,1752654647902,-711.91,0.00023835,2]
[372465222,1752654647911,-460.0,0.00023835,2]
[372465224,1752654647920,-462.79,0.00023835,2]
[372465226,1752654647929,-330.84145488,0.00023835,2]
[372465228,1752654647938,-1837.15,0.00023835,2]
[372465230,1752654647948,-673.27,0.00023835,2]
[372465232,1752654647958,-1802.7,0.00023835,2]
[372465234,1752654647967,-968.13,0.00023835,2]
[372465236,1752654647976,-663.7,0.00023835,2]
[372465238,1752654647986,-999.79,0.00023835,2]
[372465240,1752654647996,-500.0,0.00023878,2]
[372465243,1752654648005,-151.0,0.00023887,6]
[372465245,1752654648015,-3246.52510918,0.00023909,2]
[372465247,1752654648024,-13330.02,0.00024,7]
[372465248,1752654648034,-778.57,0.00024109,2]
[372465251,1752654648044,-711.91,0.00024109,2]
[372465252,1752654648054,-460.0,0.00024109,2]
[372465254,1752654648063,-462.79,0.00024109,2]
[372465256,1752654648073,-1837.15,0.00024109,2]
[372465258,1752654648082,-673.27,0.00024109,2]
[372465260,1752654648092,-1802.7,0.00024109,2]
[372465262,1752654648102,-968.13,0.00024109,2]
[372465264,1752654648112,-663.7,0.00024109,2]
[372465266,1752654648121,-999.79,0.00024109,2]
[372465268,1752654648131,-151.0,0.00024157,6]
[372465271,1752654648141,-168.0,0.00024222,2]
[372465272,1752654648150,-151.0,0.000243,6]
[372465275,1752654648160,-151.0,0.000243,10]
[372465276,1752654648170,-168.0,0.0002433,2]
[372465278,1752654648180,-3246.52510918,0.00024331,2]
[372465281,1752654648190,-778.57,0.00024383,2]
[372465283,1752654648201,-711.91,0.00024383,2]
[372465285,1752654648211,-460.0,0.00024383,2]
[372465287,1752654648222,-462.79,0.00024383,2]
[372465289,1752654648232,-1837.15,0.00024383,2]
[372465291,1752654648241,-673.27,0.00024383,2]
[372465293,1752654648252,-1802.7,0.00024383,2]
[372465295,1752654648261,-968.13,0.00024383,2]
[372465297,1752654648270,-663.7,0.00024383,2]
[372465298,1752654648280,-999.79,0.00024383,2]
[372465301,1752654648290,-151.0,0.000244,6]
[372465302,1752654648299,-168.0,0.00024406,2]
[372465305,1752654648309,-151.0,0.00024427,7]
[372465307,1752654648319,-1027.678642,0.00024473,8]
[372465309,1752654648328,-3246.52510918,0.00024478,2]
[372465311,1752654648338,-178.52,0.000245,7]
[372465313,1752654648349,-151.511243,0.000245,14]
[372465315,1752654648358,-168.0,0.00024573,2]
[372465317,1752654648368,-250.0,0.00024578,2]
[372465319,1752654648377,-168.0,0.0002459,2]
[372465321,1752654648388,-975.719,0.00024611,2]
[372465323,1752654648397,-189.074,0.00024611,2]
[372465325,1752654648407,-1115.24679293,0.00024628,2]
[372465327,1752654648417,-350.27166094,0.00024657,2]
[372465329,1752654648426,-778.57,0.00024657,2]
[372465331,1752654648436,-711.91,0.00024657,2]
[372465333,1752654648447,-460.0,0.00024657,2]
[372465335,1752654648459,-462.79,0.00024657,2]
[372465337,1752654648468,-1837.15,0.00024657,2]
[372465339,1752654648477,-673.27,0.00024657,2]
[372465341,1752654648487,-1802.7,0.00024657,2]
[372465343,1752654648497,-968.13,0.00024657,2]
[372465345,1752654648506,-663.7,0.00024657,2]
[372465347,1752654648515,-999.79,0.00024657,2]
[372465349,1752654648525,-223.0315306,0.00024663,2]
[372465351,1752654648536,-168.0,0.00024677,2]
[372465353,1752654648546,-503.0,0.0002468,2]
[372465355,1752654648555,-151.0,0.00024697,7]
[372465357,1752654648565,-941.54,0.000247,7]
[372465359,1752654648575,-151.511243,0.0002475,14]
[372465361,1752654648584,-170.4186172,0.000248,2]
[372465363,1752654648594,-21685.38,0.000248,2]
[372465365,1752654648603,-545.98280777,0.000248,2]
[372465367,1752654648613,-823.0,0.00024818,2]
[372465369,1752654648623,-3011.648212,0.0002482,2]
[372465371,1752654648632,-319.7326873,0.00024822,2]
[372465373,1752654648641,-151.511243,0.00024852,2]
[372465375,1752654648651,-9809.70616233,0.0002487,4]
[372465377,1752654648660,-503.18757773,0.00024873,2]
[372465379,1752654648670,-500.0,0.00024873,2]
[372465381,1752654648679,-500.0,0.00024873,2]
[372465383,1752654648689,-545.9828077,0.00024884,2]
[372465385,1752654648701,-3246.52510924,0.00024891,2]
[372465387,1752654648711,-2386.40032938,0.000249,2]
[372465397,1752654648803,-771.05,0.000249,2]
[372465400,1752654648814,-500.0,0.000249,9]
[372465401,1752654648824,-500.0,0.000249,9]
[372465403,1752654648833,-414236.99682709,0.000249,2]
[372465415,1752654648930,-68357.75443729,0.000249,2]
[372465417,1752654648949,-1034.00961032,0.00019452,2]
[372465426,1752654649023,-460.0,0.00019178,2]
[372465428,1752654649032,-460.0,0.00019178,2]
[372465430,1752654649042,-283.29263174,0.00019178,2]
[372465432,1752654649053,-552.24038968,0.00019452,2]
[372465434,1752654649063,-460.0,0.00019452,2]
[372465436,1752654649073,-1586.25,0.00019726,2]
[372465438,1752654649083,-400.30408521,0.0002,2]
[372465440,1752654649095,-1185.94591479,0.0002,2]
[372465442,1752654649104,-1586.25,0.00020273,2]
[372465444,1752654649114,-1586.25,0.00020547,2]
[372465446,1752654649124,-1586.25,0.00020821,2]
[372465448,1752654649134,-1586.25,0.00021095,2]
[372465450,1752654649143,-1586.25,0.00021369,2]
[372465452,1752654649153,-1586.25,0.00021643,2]
[372465454,1752654649162,-69353.74931112,0.000249,2]
[372465457,1752654649174,-100340.01482748,0.000249,2]
[372465459,1752654649186,-974.08394785,0.000249,2]
[372465461,1752654649200,-537.0600867,0.000249,2]
[372465481,1752654649380,-460.0,0.00019178,2]
[372465483,1752654649389,-460.0,0.00019178,2]
[372465485,1752654649399,-460.0,0.00019178,2]
[372465487,1752654649408,-460.0,0.00019452,2]
[372465489,1752654649418,-460.0,0.00019726,2]
[372465491,1752654649427,-460.0,0.0002,2]
[372465493,1752654649437,-460.0,0.00020273,2]
[372465495,1752654649449,-460.0,0.00020547,2]
[372465497,1752654649460,-2081.48281647,0.00020721,2]
[372465499,1752654649469,-460.0,0.00020821,2]
[372465501,1752654649478,-460.0,0.00021095,2]
[372465503,1752654649488,-460.0,0.00021369,2]
[372465505,1752654649498,-1586.25,0.00021917,2]
[372465507,1752654649507,-1586.25,0.00022191,2]
[372465509,1752654649516,-1586.25,0.00022465,2]
[372465511,1752654649527,-1586.25,0.00022739,2]
[372465513,1752654649537,-1586.25,0.00023013,2]
[372465515,1752654649546,-1586.25,0.00023287,2]
[372465517,1752654649556,-1586.25,0.00023561,2]
[372465519,1752654649565,-1586.25,0.00023835,2]
[372465521,1752654649574,-1586.25,0.00024109,2]
[372465523,1752654649583,-1586.25,0.00024383,2]
[372465525,1752654649593,-1586.25,0.00024657,2]
[372465527,1752654649602,-6173.13845458,0.000249,2]
[372465529,1752654649614,-5239.90386476,0.000249,2]
[372465532,1752654649626,-8481.38918797,0.000249,2]
[372465536,1752654649659,-460.0,0.00019452,2]
[372465538,1752654649669,-460.0,0.00021643,2]
[372465540,1752654649678,-2081.48281646,0.00021741,2]
[372465542,1752654649688,-460.0,0.00021917,2]
[372465544,1752654649699,-194.48,0.00022191,2]
[372465546,1752654649709,-52.09753464,0.000249,2]
[372465548,1752654649720,-12343.38328872,0.000249,2]
[372465551,1752654649732,-460.0,0.000249,2]
[372465553,1752654649743,-292.90480243,0.000249,2]
[372467403,1752654876929,365.968862,0.00013699,2]
[372467405,1752654903116,499.99999903,0.000249,120]
[372467407,1752654966053,500.0,0.000249,120]
[372467408,1752655015186,500.0,0.000249,120]
[372467411,1752655085721,-169.50361706,0.00018221,2]
[372467412,1752655093007,-181.33639013,0.00018221,2]
[372467413,1752655097401,-216.84990738,0.00018221,2]
[372467414,1752655102487,-272.5891361,0.00018221,2]
[372467415,1752655104744,-256.50943242,0.00018221,2]
[372467416,1752655108593,-295.2939854,0.00018221,2]
[372467417,1752655110818,-339.67014025,0.00018221,2]
[372467418,1752655114724,-210.96200152,0.00018221,2]
[372467419,1752655118413,-188.62561857,0.00018221,2]
[372467420,1752655120454,-183.44223553,0.00018221,2]
[372467421,1752655123833,-314.47593901,0.00018221,2]
[372467422,1752655126526,-161.98615384,0.00018221,2]
[372467423,1752655183267,3093.6927706,0.00017994,2]
[372467427,1752655548103,-2264.15479572,0.00018221,2]
[372467428,1752655549097,-1609.68183871,0.00018221,2]
[372467429,1752655551380,500.0,0.000249,120]
[372467430,1752655581802,500.0,0.000249,120]
[372467432,1752655612922,500.0,0.000249,120]
[372467433,1752655631101,-169.80775629,0.00018121,2]
[372467434,1752655631123,-3334.91880836,0.00018221,2]
[372467435,1752655631144,-509.77476595,0.00018221,2]
[372467436,1752655631165,-158.10126875,0.00018502,2]
[372467437,1752655631186,-300.504435,0.00018598,2]